bitfinex-derivatives/quotes_BTCF0:USTF0_20241213
["timestamp","ask_amount","ask_price","bid_price","bid_amount"]
[1734105388540,0.3608,99931.0,99923.0,0.3608]
[1734105389543,0.3608,99931.0,99920.0,0.19377594]
[1734105389732,0.3608,99921.0,99912.0,0.050036]
[1734105390133,0.3608,99923.0,99912.0,0.050036]
[1734105390339,0.3608,99923.0,99905.0,0.00132]
[1734105390538,0.3608,99923.0,99904.0,0.41084]
[1734105390741,0.050031,99922.0,99910.0,0.14374394]
[1734105390938,0.050031,99922.0,99909.0,0.050037]
[1734105391242,0.050033,99918.0,99910.0,0.14374394]
[1734105391546,6.963e-05,99920.0,99910.0,0.14374394]
[1734105391745,6.963e-05,99920.0,99916.0,0.3608]
[1734105391938,0.3628,99931.0,99916.0,0.3608]
[1734105392135,0.3628,99931.0,99923.0,0.05003]
[1734105392335,0.3608,99931.0,99921.0,0.14374394]
[1734105392545,0.3608,99943.0,99925.0,0.3608]
[1734105392739,0.3608,99943.0,99933.0,0.50454394]
[1734105392937,0.3608,99943.0,99935.0,0.3608]
[1734105393253,0.3608,99962.0,99935.0,0.3608]
[1734105393449,0.3608,99962.0,99960.0,0.050012]
[1734105393643,0.050003,99978.0,99960.0,0.35822454]
[1734105394042,0.3608,99980.0,99960.0,0.35822454]
[1734105394242,0.049994,99997.0,99980.0,0.050002]
[1734105394447,0.3608,99992.0,99970.0,0.3608]
[1734105394648,0.3608,99982.0,99970.0,0.410807]
[1734105395043,0.3608,99982.0,99971.0,1.5]
[1734105395548,0.3608,99972.0,99960.0,0.35822454]
[1734105395743,0.3608,99972.0,99961.0,0.050011]
[1734105395939,0.0044,99981.0,99960.0,0.35822454]
[1734105395940,0.0044,99981.0,99968.0,0.3608]
[1734105396247,0.0044,99981.0,99974.0,0.050005]
[1734105396445,0.0024,99981.0,99974.0,0.050005]
[1734105396653,0.0044,99981.0,99974.0,0.050005]
[1734105396843,0.0044,99981.0,99970.0,0.14374394]
[1734105397149,0.0044,99981.0,99979.0,0.050002]
[1734105397653,0.0044,99981.0,99968.0,0.3608]
[1734105397845,0.0044,99981.0,99962.0,1.50128]
[1734105398045,0.0044,99981.0,99967.0,0.050008]
[1734105398441,0.0044,99981.0,99970.0,0.14374394]
[1734105398652,0.3608,99973.0,99960.0,0.3608]
[1734105398855,0.3608,99973.0,99946.0,0.050019]
[1734105399154,0.3608,99951.0,99940.0,0.00010298]
[1734105399355,0.3608,99941.0,99940.0,0.00010298]
[1734105401369,0.3608,99941.0,99940.0,0.05012498]
[1734105401557,0.3608,99964.0,99940.0,0.36090298]
[1734105401860,0.3608,99973.0,99954.0,0.22232017]
[1734105402255,0.3608,99973.0,99961.0,0.050011]
[1734105402458,0.00887127,99972.0,99954.0,0.22232017]
[1734105402656,0.00887127,99971.0,99954.0,0.22232017]
[1734105402860,0.00887127,99970.0,99954.0,0.22232017]
[1734105403068,0.3608,99973.0,99954.0,0.22232017]
[1734105403069,0.00887127,99969.0,99954.0,0.22232017]
[1734105403258,0.3608,99973.0,99953.0,0.3608]
[1734105403259,0.00880878,99968.0,99953.0,0.3608]
[1734105403460,0.3608,99965.0,99960.0,0.050012]
[1734105403760,0.3608,99965.0,99951.0,0.3608]
[1734105403965,0.3608,99965.0,99941.0,1.50128]
[1734105404164,0.3608,99965.0,99941.0,1.5]
[1734105404363,0.3608,99948.0,99940.0,0.36090298]
[1734105404861,0.3608,99948.0,99941.0,1.550021]
[1734105405370,0.3608,99957.0,99950.0,0.050017]
[1734105406072,0.3608,99959.0,99950.0,0.050017]
[1734105406758,0.3608,99959.0,99944.0,0.41082]
[1734105406954,0.050015,99955.0,99944.0,0.3608]
[1734105407168,0.3608,99959.0,99947.0,0.050018]
[1734105407365,0.3608,99959.0,99944.0,0.3608]
[1734105407568,0.3608,99959.0,99941.0,1.50128]
[1734105407569,0.050014,99956.0,99946.0,0.050019]
[1734105407863,0.002,99957.0,99950.0,0.050017]
[1734105408057,0.002,99957.0,99941.0,1.5]
[1734105408865,0.002,99957.0,99948.0,0.050018]
[1734105409167,0.3628,99959.0,99948.0,0.050018]
[1734105409560,0.3628,99959.0,99941.0,1.50132]
[1734105409760,0.3628,99959.0,99941.0,1.5]
[1734105409965,0.001,99957.0,99941.0,1.5]
[1734105410263,0.001,99957.0,99947.0,0.050018]
[1734105410469,0.001,99957.0,99941.0,0.00128]
[1734105410470,0.3608,99948.0,99941.0,0.00128]
[1734105410659,0.3608,99948.0,99940.0,0.00010298]
[1734105410660,0.050022,99941.0,99940.0,0.00010298]
[1734105410861,0.00874476,99941.0,99910.0,0.22232017]
[1734105411057,0.00874476,99940.0,99922.0,1.5]
[1734105411268,0.3608,99923.0,99909.0,0.3608]
[1734105411573,0.050036,99912.0,99910.0,0.04378652]
[1734105411758,0.050036,99912.0,99895.0,0.3608]
[1734105411759,9.493e-05,99910.0,99895.0,0.3608]
[1734105412063,9.493e-05,99910.0,99907.0,0.050038]
[1734105412265,9.493e-05,99910.0,99908.0,1.550038]
[1734105412766,9.493e-05,99910.0,99909.0,0.04379284]
[1734105413070,9.493e-05,99910.0,99908.0,1.551398]
[1734105413364,9.493e-05,99910.0,99908.0,1.501]
[1734105413556,0.05013193,99910.0,99908.0,0.001]
[1734105413965,9.493e-05,99910.0,99908.0,0.001]
[1734105414157,9.493e-05,99910.0,99909.0,0.04379316]
[1734105415268,0.05005,99885.0,99871.0,0.050056]
[1734105415470,0.05005,99885.0,99870.0,0.00010911]
[1734105415471,0.3608,99881.0,99874.0,0.29854202]
[1734105415672,0.3608,99872.0,99870.0,0.00010911]
[1734105416974,0.3608,99881.0,99870.0,0.00010911]
[1734105417267,7.792e-05,99880.0,99875.0,0.050054]
[1734105417468,7.792e-05,99880.0,99870.0,0.00010911]
[1734105418669,0.050057,99871.0,99870.0,0.00010911]
[1734105418972,0.3608,99873.0,99870.0,0.00010911]
[1734105419861,0.3608,99873.0,99871.0,1.5]
[1734105420062,0.050056,99872.0,99871.0,1.5]
[1734105421272,0.3618,99873.0,99870.0,0.00010911]
[1734105421481,0.001,99872.0,99870.0,0.00010911]
[1734105421665,0.001,99872.0,99871.0,1.5]
[1734105422667,7.792e-05,99880.0,99871.0,1.550057]
[1734105422864,0.3608,99907.0,99879.0,0.050052]
[1734105423066,0.11636217,99927.0,99877.0,0.3608]
[1734105423067,0.3608,99918.0,99890.0,0.22232017]
[1734105423266,0.050034,99916.0,99891.0,0.5223]
[1734105423471,0.3608,99910.0,99886.0,0.050049]
[1734105423777,0.3608,99918.0,99870.0,0.16160911]
[1734105423778,0.3608,99887.0,99870.0,0.16160911]
[1734105423981,0.3608,99887.0,99886.0,1.5]
[1734105424873,0.050056,99872.0,99870.0,0.00010911]
[1734105425373,0.3608,99877.0,99870.0,0.00010911]
[1734105425570,0.050056,99872.0,99870.0,0.00010911]
[1734105427383,0.050056,99872.0,99848.0,0.3608]
[1734105427384,0.001,99872.0,99848.0,0.3608]
[1734105427570,0.050067,99851.0,99840.0,0.3608]
[1734105428270,9.756e-05,99850.0,99840.0,0.3608]
[1734105428467,0.36089756,99850.0,99840.0,0.3608]
[1734105429365,0.36089756,99850.0,99829.0,0.5306]
[1734105429568,0.36089756,99850.0,99819.0,0.3608]
[1734105429773,0.410874,99837.0,99820.0,1.54382219]
[1734105429983,0.410874,99837.0,99810.0,0.00010929]
[1734105430177,0.050087,99811.0,99800.0,0.1]
[1734105430368,0.41089,99805.0,99800.0,0.1]
[1734105430689,0.41089,99805.0,99801.0,0.04382696]
[1734105430864,0.41089,99805.0,99804.0,1.54542696]
[1734105431176,0.41089,99805.0,99804.0,0.0016]
[1734105431476,0.050091,99802.0,99800.0,0.1]
[1734105431677,0.3608,99805.0,99801.0,1.5]
[1734105431870,0.001,99811.0,99802.0,0.0438264]
[1734105432069,0.001,99811.0,99801.0,1.5]
[1734105432070,0.00010085,99810.0,99801.0,1.50128]
[1734105432374,0.00010085,99810.0,99801.0,1.5]
[1734105432874,0.00010085,99810.0,99808.0,0.050088]
[1734105433773,0.3608,99834.0,99812.0,0.22232017]
[1734105434074,0.3608,99821.0,99804.0,0.3608]
[1734105434273,0.3608,99813.0,99804.0,0.3608]
[1734105434480,0.050088,99808.0,99805.0,0.0438264]
[1734105434685,0.3608,99813.0,99801.0,1.50128]
[1734105434686,0.050089,99807.0,99801.0,1.50128]
[1734105434973,0.00011265,99810.0,99802.0,0.04382369]
[1734105435178,0.00011265,99810.0,99803.0,0.04382369]
[1734105435376,0.00011265,99810.0,99802.0,0.3608]
[1734105435568,0.00011265,99810.0,99803.0,0.04382369]
[1734105435878,0.00011265,99810.0,99802.0,0.3608]
[1734105435879,0.00011265,99810.0,99804.0,0.04382369]
[1734105436080,0.410872,99841.0,99809.0,0.410888]
[1734105436278,0.050073,99839.0,99828.0,0.3608]
[1734105436576,0.3608,99849.0,99811.0,0.04382369]
[1734105436577,0.3608,99829.0,99811.0,0.04382369]
[1734105436766,0.050081,99822.0,99812.0,0.04382369]
[1734105436967,0.3608,99829.0,99801.0,1.50132]
[1734105436968,0.050079,99827.0,99811.0,0.050087]
[1734105437169,0.05008,99826.0,99811.0,0.050087]
[1734105437371,0.05008,99826.0,99810.0,0.22232017]
[1734105437572,0.05008,99826.0,99813.0,0.050085]
[1734105438078,0.05008,99826.0,99800.0,0.4608]
[1734105438079,0.050085,99814.0,99800.0,0.4608]
[1734105438269,0.050085,99814.0,99801.0,0.04382892]
[1734105438473,0.050082,99820.0,99803.0,0.050091]
[1734105438776,0.3608,99821.0,99800.0,0.4608]
[1734105438980,0.3608,99821.0,99810.0,0.22232017]
[1734105439169,0.001,99826.0,99825.0,0.05008]
[1734105439374,0.001,99826.0,99825.0,0.41088]
[1734105439871,0.050066,99852.0,99825.0,0.41088]
[1734105439872,0.01136334,99852.0,99825.0,1.8608]
[1734105440074,0.3608,99857.0,99854.0,0.050065]
[1734105440378,0.3608,99857.0,99845.0,0.3608]
[1734105440774,0.3608,99857.0,99855.0,0.050064]
[1734105441181,0.3608,99857.0,99845.0,0.3608]
[1734105441783,0.3678,99857.0,99847.0,0.3608]
[1734105442076,0.3678,99857.0,99855.0,0.050064]
[1734105442472,0.3678,99857.0,99848.0,0.00128]
[1734105442777,0.050065,99855.0,99841.0,0.050071]
[1734105442977,0.3608,99849.0,99842.0,1.5]
[1734105443683,0.3608,99849.0,99840.0,0.22232017]
[1734105443884,0.050069,99847.0,99830.0,0.22232017]
[1734105444073,0.3608,99841.0,99830.0,0.22232017]
[1734105444276,0.3608,99841.0,99827.0,0.3608]
[1734105444771,0.410872,99841.0,99827.0,0.3608]
[1734105444976,0.410872,99841.0,99810.0,0.22232017]
[1734105444977,0.3608,99832.0,99828.0,0.04382075]
[1734105445178,0.3608,99832.0,99829.0,0.04382075]
[1734105445480,0.050077,99831.0,99814.0,0.050085]
[1734105445782,0.050077,99831.0,99815.0,0.09390616]
[1734105446177,0.050077,99831.0,99815.0,0.050084]
[1734105446373,0.050077,99830.0,99816.0,0.04382353]
[1734105446579,0.050077,99830.0,99815.0,0.050084]
[1734105446773,0.050077,99830.0,99809.0,0.3608]
[1734105446774,0.050077,99830.0,99816.0,0.04382339]
[1734105446984,0.3608,99841.0,99825.0,0.3608]
[1734105447177,0.3648,99841.0,99839.0,0.050072]
[1734105447779,0.3648,99841.0,99833.0,0.3608]
[1734105447780,0.3608,99841.0,99833.0,0.3608]
[1734105447987,0.3608,99841.0,99825.0,0.3608]
[1734105448485,0.3608,99845.0,99825.0,0.3608]
[1734105448682,0.004,99841.0,99830.0,0.22232017]
[1734105449287,0.004,99841.0,99831.0,0.04382594]
[1734105449584,0.004,99841.0,99825.0,0.3608]
[1734105449888,0.054072,99841.0,99834.0,1.5]
[1734105450280,0.050073,99839.0,99835.0,0.04382351]
[1734105450592,0.004,99841.0,99826.0,0.050079]
[1734105450787,0.3608,99837.0,99827.0,0.0438255]
[1734105450986,0.3608,99828.0,99804.0,0.3608]
[1734105451187,0.3608,99818.0,99805.0,0.04382856]
[1734105451381,0.3608,99818.0,99806.0,1.54382856]
[1734105451578,0.3608,99818.0,99807.0,0.04382856]
[1734105451778,0.050084,99817.0,99808.0,0.04382856]
[1734105451981,0.3608,99818.0,99809.0,0.04382856]
[1734105452186,0.3608,99818.0,99810.0,0.04382856]
[1734105452385,0.3608,99818.0,99811.0,0.04382856]
[1734105452692,0.050086,99813.0,99812.0,0.04383011]
[1734105453280,0.050086,99813.0,99806.0,1.50128]
[1734105453281,0.050089,99807.0,99806.0,0.00128]
[1734105453579,0.710886,99813.0,99800.0,0.1]
[1734105453580,0.050092,99801.0,99800.0,0.1]
[1734105454588,0.3608,99808.0,99800.0,0.1]
[1734105454993,0.001,99801.0,99800.0,0.101]
[1734105455786,0.050091,99803.0,99800.0,0.101]
[1734105456293,0.3618,99808.0,99800.0,0.101]
[1734105456496,0.001,99808.0,99800.0,0.101]
[1734105456694,0.001,99808.0,99801.0,0.3608]
[1734105457098,0.08727162,99836.0,99826.0,0.050079]
[1734105457292,0.050073,99839.0,99826.0,0.58312017]
[1734105457599,0.050078,99828.0,99809.0,0.050087]
[1734105457783,0.3608,99833.0,99820.0,0.050082]
[1734105457990,0.3608,99833.0,99810.0,0.22232017]
[1734105458195,0.3608,99833.0,99801.0,0.050092]
[1734105458196,0.44807162,99833.0,99813.0,0.3608]
[1734105458402,0.44807162,99833.0,99801.0,0.38093799]
[1734105458403,0.050076,99832.0,99815.0,0.3608]
[1734105458600,0.13734762,99832.0,99821.0,0.050081]
[1734105458895,0.08727162,99828.0,99821.0,0.050081]
[1734105459298,0.09815897,99832.0,99822.0,0.050081]
[1734105459490,0.08727162,99831.0,99822.0,0.050081]
[1734105459893,0.09815897,99832.0,99823.0,1.5]
[1734105460195,0.09815897,99832.0,99823.0,1.28960844]
[1734105460397,0.050081,99822.0,99809.0,0.050087]
[1734105461098,0.3608,99824.0,99813.0,0.050085]
[1734105461296,0.001,99832.0,99830.0,0.050077]
[1734105461496,0.001,99832.0,99819.0,0.3608]
[1734105461895,0.001,99832.0,99827.0,0.050078]
[1734105462093,0.001,99832.0,99819.0,0.3608]
[1734105462301,0.00150314,99838.0,99837.0,0.050074]
[1734105462607,0.00150314,99838.0,99831.0,0.050076]
[1734105462897,0.00150314,99838.0,99828.0,0.3608]
[1734105463098,0.050076,99832.0,99828.0,0.3608]
[1734105463301,0.08877476,99838.0,99828.0,0.3608]
[1734105463302,0.00150314,99838.0,99828.0,0.3608]
[1734105463501,0.050075,99834.0,99828.0,0.3608]
[1734105463710,0.00150314,99838.0,99828.0,0.3608]
[1734105464096,0.08877476,99838.0,99828.0,0.3608]
[1734105464290,0.00150314,99838.0,99833.0,0.050075]
[1734105464699,0.00150314,99838.0,99830.0,0.050077]
[1734105464903,0.00150314,99838.0,99828.0,0.3608]
[1734105465107,0.00150314,99838.0,99818.0,0.3608]
[1734105465108,0.3608,99833.0,99818.0,0.3608]
[1734105465302,0.050077,99830.0,99818.0,0.3608]
[1734105465506,0.050077,99830.0,99817.0,0.050083]
[1734105465805,0.13734862,99830.0,99817.0,0.050083]
[1734105466007,0.050077,99830.0,99817.0,0.050083]
[1734105467404,0.050077,99830.0,99810.0,1.64541926]
[1734105467405,0.3608,99822.0,99810.0,1.50092]
[1734105467599,0.3608,99814.0,99800.0,0.1]
[1734105467802,0.050087,99812.0,99800.0,0.1]
[1734105468122,0.050087,99811.0,99800.0,0.1]
[1734105468306,0.00868651,99810.0,99800.0,0.1]
[1734105468608,0.050087,99811.0,99801.0,0.04384019]
[1734105468811,0.050087,99811.0,99802.0,0.04383841]
[1734105469104,0.050087,99811.0,99800.0,0.24449926]
[1734105469105,0.050087,99811.0,99803.0,0.04383805]
[1734105469306,0.050087,99811.0,99800.0,0.24449926]
[1734105469307,0.050087,99811.0,99804.0,0.04383805]
[1734105469609,0.050087,99811.0,99800.0,0.24449926]
[1734105469610,0.37181304,99814.0,99805.0,0.04383805]
[1734105469902,0.37181304,99814.0,99806.0,0.04383805]
[1734105470103,0.001,99811.0,99807.0,0.04383805]
[1734105470309,0.001,99811.0,99802.0,0.050091]
[1734105470507,0.001,99811.0,99803.0,0.04383489]
[1734105470802,0.3608,99822.0,99809.0,0.050087]
[1734105471007,0.00872503,99821.0,99807.0,0.3608]
[1734105471217,0.3608,99822.0,99808.0,0.04383476]
[1734105471407,0.3608,99822.0,99815.0,0.050085]
[1734105471607,0.3608,99822.0,99816.0,0.04383476]
[1734105471910,0.3608,99822.0,99815.0,0.050085]
[1734105472111,0.3608,99822.0,99807.0,0.3608]
[1734105472297,0.3608,99822.0,99816.0,0.050084]
[1734105472703,0.01132414,99823.0,99817.0,0.050083]
[1734105472897,0.3608,99825.0,99810.0,0.050087]
[1734105473099,0.3608,99825.0,99811.0,0.04382889]
[1734105473100,0.3608,99817.0,99811.0,0.04382889]
[1734105473299,0.3608,99817.0,99812.0,0.04382889]
[1734105473509,0.3608,99817.0,99813.0,0.04382889]
[1734105473704,0.3608,99817.0,99814.0,0.04382889]
[1734105474001,0.01114172,99825.0,99815.0,0.40463515]
[1734105474208,0.3608,99825.0,99816.0,0.04383515]
[1734105474403,0.3608,99817.0,99816.0,0.04383515]
[1734105474614,0.3608,99817.0,99816.0,0.04383387]
[1734105474813,0.3608,99817.0,99814.0,0.002]
[1734105475612,0.00885616,99816.0,99814.0,0.002]
[1734105475818,0.00885616,99815.0,99814.0,0.002]
[1734105476003,0.00904508,99827.0,99814.0,0.002]
[1734105476004,0.08727162,99833.0,99825.0,0.05008]
[1734105476206,0.3608,99845.0,99814.0,1.90663676]
[1734105476207,0.00905486,99834.0,99823.0,0.14449926]
[1734105476412,0.00905486,99834.0,99818.0,0.050083]
[1734105476413,0.3608,99837.0,99818.0,0.050083]
[1734105476622,0.050077,99831.0,99819.0,0.04383491]
[1734105476814,0.050077,99831.0,99820.0,0.04383491]
[1734105477014,0.050074,99836.0,99821.0,0.04383491]
[1734105477203,0.3608,99837.0,99814.0,0.00092]
[1734105477204,0.3608,99822.0,99814.0,0.00092]
[1734105477409,0.3608,99822.0,99800.0,0.60529926]
[1734105477603,0.08727162,99819.0,99803.0,0.05009]
[1734105477812,0.3608,99822.0,99803.0,0.05009]
[1734105478017,0.050084,99817.0,99803.0,0.05009]
[1734105478204,0.050084,99817.0,99804.0,0.05009]
[1734105478513,0.3608,99814.0,99805.0,0.05009]
[1734105478722,0.08727162,99821.0,99806.0,0.050089]
[1734105478908,0.08727162,99822.0,99806.0,0.050089]
[1734105479312,0.08727162,99821.0,99806.0,0.050089]
[1734105479519,0.050085,99815.0,99800.0,0.4608]
[1734105479815,0.050085,99814.0,99800.0,0.4608]
[1734105480115,0.3608,99817.0,99808.0,0.050088]
[1734105480315,0.3608,99817.0,99800.0,0.60529926]
[1734105480316,0.050081,99822.0,99810.0,0.3608]
[1734105480611,0.00902412,99817.0,99810.0,0.3608]
[1734105481020,0.050082,99820.0,99810.0,0.3608]
[1734105481313,0.08727162,99820.0,99811.0,0.050087]
[1734105481519,0.08727162,99820.0,99812.0,0.050086]
[1734105481705,0.00880081,99822.0,99812.0,0.050086]
[1734105481905,0.08727162,99822.0,99814.0,0.050085]
[1734105482226,0.3608,99825.0,99823.0,0.050081]
[1734105482705,0.3608,99825.0,99810.0,0.50629926]
[1734105483120,0.3608,99825.0,99821.0,0.050081]
[1734105483412,0.08727162,99836.0,99811.0,1.5]
[1734105483413,0.00903836,99833.0,99831.0,0.050076]
[1734105483622,0.08727162,99840.0,99824.0,0.3608]
[1734105483814,0.3608,99846.0,99825.0,0.1751]
[1734105483815,0.050073,99839.0,99825.0,0.1751]
[1734105484021,0.3608,99838.0,99825.0,0.225179]
[1734105484213,0.050074,99837.0,99825.0,0.225179]
[1734105485417,0.3608,99838.0,99828.0,0.050078]
[1734105485614,0.3608,99838.0,99825.0,0.1751]
[1734105485820,0.08727162,99855.0,99849.0,0.050067]
[1734105486120,0.36956875,99857.0,99850.0,0.050067]
[1734105486313,0.36956875,99857.0,99843.0,0.3608]
[1734105486513,0.36956875,99857.0,99851.0,0.050067]
[1734105486712,0.36956875,99857.0,99844.0,1.501]
[1734105486913,0.08727162,99864.0,99854.0,0.050065]
[1734105487118,0.006,99855.0,99854.0,0.050065]
[1734105487821,0.006,99855.0,99852.0,0.3608]
[1734105488012,0.006,99855.0,99844.0,1.50096]
[1734105488013,0.3608,99853.0,99844.0,1.50096]
[1734105488215,0.050068,99848.0,99833.0,0.050075]
[1734105489015,0.3608,99853.0,99836.0,0.050074]
[1734105489317,0.3608,99853.0,99840.0,0.14449926]
[1734105489721,0.3608,99844.0,99832.0,0.1621]
[1734105489919,0.3608,99844.0,99823.0,1.501]
[1734105490118,0.3608,99827.0,99824.0,0.05537271]
[1734105490313,0.050082,99821.0,99810.0,0.29786063]
[1734105490618,0.3608,99827.0,99811.0,0.09920889]
[1734105490619,0.050086,99812.0,99811.0,0.09920889]
[1734105490809,0.3608,99820.0,99800.0,0.24449926]
[1734105491120,0.3608,99820.0,99810.0,0.14449926]
[1734105491328,0.050084,99816.0,99810.0,0.14449926]
[1734105491820,0.050085,99815.0,99811.0,0.002]
[1734105492011,0.3608,99820.0,99811.0,0.002]
[1734105493120,0.050086,99813.0,99811.0,0.002]
[1734105493514,0.050086,99813.0,99810.0,0.002]
[1734105494013,0.3608,99820.0,99810.0,0.002]
[1734105494322,0.3608,99820.0,99777.0,0.3608]
[1734105494323,0.050101,99783.0,99773.0,0.29786063]
[1734105494523,0.6652433,99783.0,99782.0,0.04383349]
[1734105494711,0.050104,99776.0,99759.0,0.1748]
[1734105494918,0.410907,99771.0,99760.0,0.05536838]
[1734105495116,0.410907,99771.0,99759.0,0.0016]
[1734105495410,0.410912,99760.0,99759.0,0.0016]
[1734105495618,0.3608,99760.0,99748.0,0.2322803]
[1734105495914,0.050127,99731.0,99714.0,0.0016]
[1734105496124,0.3608,99729.0,99715.0,0.09917822]
[1734105496319,0.3608,99735.0,99716.0,0.09917822]
[1734105496515,0.02037543,99758.0,99734.0,0.3608]
[1734105496516,0.38117543,99758.0,99734.0,0.3608]
[1734105496720,0.08727162,99766.0,99734.0,0.3608]
[1734105496721,0.3608,99766.0,99751.0,0.410916]
[1734105496927,0.3608,99766.0,99751.0,0.1502357]
[1734105497218,0.3608,99776.0,99751.0,0.1502357]
[1734105497219,0.001,99771.0,99751.0,0.1502357]
[1734105497425,0.001,99771.0,99744.0,0.1738]
[1734105497426,0.3608,99767.0,99744.0,0.1738]
[1734105497622,0.3608,99767.0,99750.0,0.50529926]
[1734105497818,0.08727162,99776.0,99766.0,0.3608]
[1734105498018,0.3608,99782.0,99778.0,0.050103]
[1734105498324,0.3608,99791.0,99790.0,0.050097]
[1734105498513,0.3608,99791.0,99776.0,0.3608]
[1734105498514,0.01984646,99796.0,99795.0,0.050095]
[1734105498913,0.3608,99800.0,99787.0,0.3608]
[1734105499314,0.3608,99800.0,99790.0,0.22287737]
[1734105499920,0.3608,99800.0,99799.0,1.5]
[1734105500827,0.3608,99800.0,99777.0,0.1738]
[1734105500828,0.050097,99790.0,99777.0,0.1738]
[1734105501014,0.3608,99778.0,99777.0,0.1738]
[1734105501211,0.3608,99778.0,99777.0,1.6738]
[1734105502027,0.001,99790.0,99777.0,1.9738]
[1734105502226,0.001,99790.0,99789.0,0.050098]
[1734105502924,0.001,99790.0,99777.0,0.1738]
[1734105503123,0.3608,99788.0,99787.0,0.050098]
[1734105503829,0.3608,99788.0,99777.0,0.1738]
[1734105504024,0.3608,99788.0,99787.0,0.050099]
[1734105504220,0.3608,99788.0,99778.0,1.5]
[1734105504221,0.3608,99789.0,99778.0,0.050103]
[1734105504521,0.3608,99789.0,99788.0,0.050098]
[1734105504724,0.3608,99808.0,99788.0,0.410898]
[1734105504923,0.3608,99808.0,99802.0,0.050091]
[1734105505425,0.3608,99816.0,99796.0,0.3608]
[1734105505627,0.00399,99817.0,99806.0,0.58367737]
[1734105505928,0.00399,99817.0,99815.0,0.050085]
[1734105506516,0.00150322,99836.0,99815.0,0.3]
[1734105506723,0.3608,99851.0,99824.0,0.3608]
[1734105506923,0.3608,99851.0,99846.0,0.050069]
[1734105507120,0.3608,99851.0,99847.0,0.050068]
[1734105507515,0.3608,99851.0,99841.0,0.3608]
[1734105507919,0.3608,99842.0,99828.0,0.050078]
[1734105508120,0.3608,99834.0,99807.0,0.1685]
[1734105508324,0.3608,99823.0,99807.0,0.1685]
[1734105508520,0.3608,99823.0,99818.0,0.050083]
[1734105508830,0.3608,99823.0,99820.0,0.050082]
[1734105509125,0.3608,99834.0,99815.0,0.3608]
[1734105509327,0.3608,99834.0,99820.0,0.22287737]
[1734105509833,0.3608,99850.0,99833.0,0.050075]
[1734105510031,0.3608,99850.0,99821.0,1.5]
[1734105510218,0.3608,99850.0,99834.0,0.3608]
[1734105510426,0.3608,99850.0,99839.0,0.050073]
[1734105510624,0.3608,99850.0,99836.0,0.3608]
[1734105510928,0.3608,99850.0,99837.0,0.3608]
[1734105511126,0.3608,99850.0,99845.0,0.050069]
[1734105511328,0.3608,99850.0,99849.0,0.050068]
[1734105511532,0.3608,99864.0,99856.0,0.050064]
[1734105512127,0.3608,99864.0,99851.0,1.501]
[1734105512321,0.3608,99868.0,99851.0,1.501]
[1734105512322,0.3608,99856.0,99851.0,1.5]
[1734105512527,0.3608,99856.0,99851.0,1.550067]
[1734105513433,0.3608,99856.0,99851.0,1.5]
[1734105513635,0.3608,99856.0,99854.0,0.050065]
[1734105514330,0.3658,99856.0,99854.0,0.050065]
[1734105514930,0.3658,99856.0,99851.0,0.001]
[1734105515131,0.3658,99856.0,99716.0,0.65820356]
[1734105515132,0.050069,99847.0,99832.0,0.050076]
[1734105515430,0.3608,99856.0,99820.0,0.55447737]
[1734105515431,0.3608,99837.0,99826.0,0.050079]
[1734105515638,0.3608,99837.0,99820.0,1.89189737]
[1734105515931,0.3608,99847.0,99839.0,0.050072]
[1734105516338,0.3608,99847.0,99845.0,0.050069]
[1734105516642,0.3608,99855.0,99845.0,0.050069]
[1734105516829,0.3608,99855.0,99830.0,0.22287737]
[1734105517034,0.3608,99847.0,99836.0,0.050074]
[1734105517430,0.3608,99837.0,99820.0,2.02982]
[1734105517636,0.3608,99837.0,99820.0,1.5]
[1734105517637,0.3608,99828.0,99820.0,1.5]
[1734105517837,0.3608,99828.0,99812.0,0.050086]
[1734105518135,0.050082,99821.0,99809.0,0.3608]
[1734105518334,0.050082,99821.0,99810.0,1.5]
[1734105518545,0.3608,99820.0,99810.0,1.5]
[1734105519243,0.3608,99811.0,99810.0,1.550087]
[1734105519744,0.3608,99811.0,99810.0,1.5]
[1734105519940,0.3608,99818.0,99810.0,1.5]
[1734105520134,0.410877,99830.0,99818.0,0.050083]
[1734105520334,0.3608,99830.0,99829.0,0.050078]
[1734105520650,0.0015032,99840.0,99811.0,0.050086]
[1734105520651,0.3608,99839.0,99838.0,0.050073]
[1734105520840,0.3608,99839.0,99831.0,0.050076]
[1734105521144,0.3608,99858.0,99839.0,0.050073]
[1734105521342,0.3608,99858.0,99848.0,0.050068]
[1734105521343,0.3608,99849.0,99848.0,0.050068]
[1734105521545,0.3608,99857.0,99848.0,0.050068]
[1734105521739,0.410864,99857.0,99844.0,0.05007]
[1734105521939,0.410864,99857.0,99851.0,1.5]
[1734105522344,0.3608,99857.0,99851.0,1.5]
[1734105522554,0.050066,99853.0,99851.0,1.5]
[1734105522741,0.3608,99857.0,99851.0,1.5]
[1734105524241,0.3658,99857.0,99851.0,1.5]
[1734105524440,0.3608,99852.0,99821.0,0.3608]
[1734105524653,0.410878,99830.0,99818.0,0.0015027]
[1734105524951,0.050079,99826.0,99818.0,0.0015027]
[1734105525257,0.050083,99819.0,99818.0,0.0015027]
[1734105527645,0.3608,99822.0,99818.0,0.0015027]
[1734105527846,0.34640314,99839.0,99818.0,0.0015027]
[1734105527847,0.00150314,99839.0,99838.0,0.050073]
[1734105528051,0.00150314,99839.0,99838.0,1.5]
[1734105528849,0.08851978,99839.0,99838.0,1.5]
[1734105529160,0.00150314,99839.0,99838.0,1.5]
[1734105531050,0.00350314,99839.0,99838.0,1.5]
[1734105532951,0.08700633,99853.0,99852.0,0.050066]